[Event "Mongolian Championship Women 2022"]
[Site "Chingis Khentii"]
[Date "2022.05.18"]
[Round "6.2"]
[White "Altantuya, Boldbaatar"]
[Black "Bayarmaa, Bayarjargal"]
[Result "1/2-1/2"]
[ECO "E88"]
[WhiteElo "2263"]
[BlackElo "2124"]
[Annotator "TA"]
[PlyCount "159"]
[EventDate "2022.05.12"]
[EventType "tourn"]
[EventCountry "MGL"]
[SourceTitle "playchess.com"]
[Source "ChessBase"]
[SourceQuality "1"]
[TimeControl "40/5400+30:1800+30"]

{[%evp 22,159,52,45,58,41,76,16,36,-14,37,24,75,71,193,188,180,160,209,181,202,175,252,252,522,518,497,518,514,486,855,490,466,360,371,127,577,589,650,663,1122,1087,1080,1053,1030,934,962,683,1217,1214,1061,926,902,324,329,97,91,92,173,180,212,205,148,143,218,211,218,196,194,177,160,132,142,108,195,133,133,133,132,131,133,133,187,103,90,25,63,63,63,8,8,0,0,0,0,0,0,0,0,0,0,0,0,0,0,0,0,0,0,0,0,0,0,0,0,0,0,0,0,0,0,0,0,0,0,0,0,0,0,0,0,0,0,0,0,0,0,0,0,0]} 1. d4 {[%emt 0:00:02]} Nf6 {[%emt 0:00:07]} 2. c4 {[%emt 0:00:11]} g6 {[%emt 0:00:06]} 3. Nc3 {[%emt 0:00:12]} Bg7 {[%emt 0:00:05]} 4. e4 {[%emt 0:00:07]} d6 {[%emt 0:00:05]} 5. f3 {[%emt 0:00:37]} O-O {[%emt 0:00:20]} 6. Be3 {[%emt 0:00:14]} e5 {[%emt 0:00:37]} 7. d5 {[%emt 0:00:21]} c6 {[%emt 0:03:08]} 8. Qd2 {[%emt 0:03:32]} cxd5 {[%emt 0:02:26]} 9. cxd5 {[%emt 0:00:22]} a6 {[%emt 0:02:07]} 10. a4 {[%emt 0:05:44]} Nbd7 {[%emt 0:03:52]} 11. Bd3 {[%emt 0:02:18]} Nh5 {[%emt 0:14:42]} 12. Nge2 {[%emt 0:02:35]} f5 {[%emt 0:00:50][%cal Oh5f4] E88: King's Indian: Sämisch: 6...e5 7 d5 c6.} 13. exf5 {[%emt 0:00:28]} gxf5 {[%emt 0:00:27][%cal Oe5e4] [#]} 14. Bf2 $146 {[%emt 0:06:29]} (14. O-O $16) ({Predecessor:} 14. O-O Nc5 15. Bc4 b6 16. b4 Nd7 17. Rfc1 f4 18. Bf2 e4 19. Nxe4 Bxa1 20. Rxa1 {1-0 (37) Cordes,H (2259)-Skutta,B (1942) London 2016}) 14... Rf7 {[%emt 0:05:10][%cal Oe5e4]} 15. a5 {[%emt 0:06:45]} ({Better is} 15. O-O $14) 15... Qf6 {[%emt 0:01:27]} (15... e4 $11 16. fxe4 Ne5) 16. O-O {[%emt 0:19:31]} Qg6 {[%emt 0:12:54]} (16... Bh6 $11 {keeps the balance.} 17. Qc2 Qg6) 17. Kh1 $16 {[%emt 0:02:38][%cal Og2g4] White is more active.} Nf4 {[%emt 0:27:07]} (17... Qh6 $16 {keeps fighting.} 18. Qxh6 Bxh6) 18. Nxf4 $18 {[%emt 0:07:41]} exf4 {[%emt 0:00:13]} 19. Qxf4 {[%emt 0:15:42]} Be5 {[%emt 0:04:30]} (19... Ne5 $16 {was worth a try.}) 20. Qh4 {[%emt 0:01:29]} Rg7 {[%emt 0:01:51][%csl Gg7][%cal Rg6g2]} 21. g4 {[%emt 0:12:22]} Bf6 {[%emt 0:05:23]} (21... Qf7 $142) 22. Qh3 $1 {[%emt 0:00:32]} Ne5 $2 {[%emt 0:04:15]} (22... fxg4 23. fxg4 (23. Bxg6 gxh3 24. Bc2 Be5 $16) 23... Qxg4 24. Bxh7+ Kh8 25. Qxg4 Rxg4) 23. Bxf5 {[%emt 0:00:47]} Bxf5 {[%emt 0:00:43]} 24. gxf5 {[%emt 0:00:03]} Qf7 {[%emt 0:00:44]} 25. Ne4 {[%emt 0:01:48]} Nc4 {[%emt 0:01:51]} (25... Nd7 $142 26. Rac1 Rf8) 26. Ra4 {[%emt 0:03:20]} Ne5 {[%emt 0:03:12]} 27. Nxf6+ {[%emt 0:02:27]} Qxf6 {[%emt 0:00:05]} 28. Bd4 $2 {[%emt 0:00:30]} (28. Be3 $18 {is more deadly.}) 28... Qf7 $2 {[%emt 0:00:48][%mdl 8192]} (28... Rf8 $16 {is tougher.}) 29. Bxe5 {[%emt 0:00:07]} dxe5 {[%emt 0:00:06]} 30. Rg4 {[%emt 0:00:26]} Rd8 {[%emt 0:02:02]} 31. Rxg7+ {[%emt 0:04:04]} Kxg7 {[%emt 0:00:02][%mdl 4096] Endgame KQR-KQR} 32. Qg3+ {[%emt 0:00:15]} Kf8 {[%emt 0:01:10]} 33. Qxe5 {[%emt 0:00:13]} Rxd5 {[%emt 0:00:25]} 34. Qb8+ {[%emt 0:01:01]} Kg7 {[%emt 0:00:07]} 35. Rg1+ {[%emt 0:00:07]} Kf6 {[%emt 0:00:07]} 36. Qf4 {[%emt 0:00:32] aiming for Qg5+.} Qh5 {[%emt 0:01:25] Inhibits Qg5+.} 37. b4 $2 {[%emt 0:02:14]} (37. Rg8 Kf7 38. Rg5 Rd1+ 39. Kg2) 37... Qxf5 {[%emt 0:01:57]} 38. Rg4 {[%emt 0:01:05]} (38. Qh6+ Ke7 39. Qh4+ Ke8 $16) (38. Qh4+ $18 {has better winning chances.} Kf7 39. Qg3) 38... Qxf4 $16 {[%emt 0:01:24]} 39. Rxf4+ {[%emt 0:00:02] KR-KR} Ke5 {[%emt 0:00:11] [#]} (39... Kg7 $16 {is a better defense.}) 40. Rh4 $1 $18 {[%emt 0:00:00]} Rd7 {[%emt 0:00:00]} 41. Kg2 {[%emt 0:04:31]} Kf5 {[%emt 0:01:15]} 42. Kg3 {[%emt 0:03:09][%cal Ob4b5]} Rc7 {[%emt 0:02:13]} (42... Kg6 $16 {was called for.} 43. Rg4+ Kf5) 43. h3 {[%emt 0:04:39]} Rd7 {[%emt 0:01:59]} 44. Rc4 {[%emt 0:05:51]} Rg7+ {[%emt 0:00:14]} 45. Rg4 {[%emt 0:00:15]} Rd7 {[%emt 0:00:17]} 46. Re4 {[%emt 0:06:33]} Rc7 {[%emt 0:01:05]} 47. h4 {[%emt 0:00:56]} h6 {[%emt 0:01:29] [#]} (47... b6 $16) 48. Rd4 {[%emt 0:02:20]} ({White should play} 48. Rf4+ $1 $18 Ke5 49. h5) 48... Ke5 $16 {[%emt 0:01:02]} 49. Rd8 {[%emt 0:01:06]} Rg7+ {[%emt 0:06:03]} 50. Kf2 {[%emt 0:00:35]} Rc7 {[%emt 0:00:10]} 51. Rh8 {[%emt 0:01:38]} Rc6 {[%emt 0:00:47]} (51... Rc4 $16) 52. Rh7 {[%emt 0:04:49]} (52. Re8+ $18 Kf6 53. Kg3) 52... b6 {[%emt 0:00:37]} 53. b5 {[%emt 0:01:04]} ({White should try} 53. Kg3 $16) 53... axb5 {[%emt 0:02:33]} 54. a6 {[%emt 0:00:02]} Rc2+ {[%emt 0:03:53]} 55. Kg3 {[%emt 0:00:28]} (55. Ke3 $1 $14 Rc3+ 56. Kd2) 55... Ra2 $11 {[%emt 0:00:10] The position is equal.} 56. a7 {[%emt 0:00:27]} Kd4 {[%emt 0:00:26] Hoping for ...b4.} 57. Rxh6 {[%emt 0:00:44]} Kc5 {[%emt 0:01:04] Strongly threatening ...b4.} 58. Rh7 {[%emt 0:00:56]} b4 {[%emt 0:00:05]} 59. Rc7+ {[%emt 0:00:07]} Kb5 {[%emt 0:00:36]} 60. h5 {[%emt 0:00:24] Threatens to win with h6.} b3 {[%emt 0:00:14]} 61. h6 $1 {[%emt 0:00:56]} b2 {[%emt 0:00:15]} 62. h7 {[%emt 0:00:10]} b1=Q {[%emt 0:02:17]} 63. h8=Q {[%emt 0:00:03] KQR-KQR} Qg6+ {[%emt 0:02:55]} 64. Kf4 {[%emt 0:00:10] The board is on fire.} Ra4+ {[%emt 0:00:13]} 65. Ke5 {[%emt 0:00:58] Qg7 is the strong threat.} ({Avoid the trap} 65. Ke3 $2 Qg5+ 66. Kd3 Qf5+ 67. Kc3 Qxf3+ 68. Kb2 Rb4+ 69. Kc2 (69. Kc1 {gets mated.} Qf4+ 70. Kc2 Qxc7+ 71. Qc3 Rc4) 69... Qe2+ 70. Kc1 Qe3+ 71. Kc2 Qe4+ 72. Kc3 Qe3+ 73. Kc2 Qe2+ 74. Kc1 Qe1+ 75. Kc2 Qb1+ 76. Kd2 Rb2+ 77. Qxb2+ (77. Ke3 {is a self mate.} Qe1+ 78. Kf3 Rf2+ 79. Kg3 Qg1+ 80. Kh4 Rh2#) 77... Qxb2+ $19) 65... Qg3+ {[%emt 0:01:13]} 66. Ke6 {[%emt 0:00:44] Intending Qb2+ and mate.} Qxc7 {[%emt 0:03:24]} 67. Qb2+ {[%emt 0:00:16]} Kc6 {[%emt 0:00:31]} 68. Qc2+ {[%emt 0:00:20]} Kb7 {[%emt 0:01:00]} 69. Qxa4 {[%emt 0:00:02][%cal Ra7a8] KQ-KQ} Qc8+ {[%emt 0:00:20]} 70. Ke5 {[%emt 0:01:49]} Qc3+ {[%emt 0:02:04]} 71. Ke4 {[%emt 0:00:28]} Qe1+ {[%emt 0:01:15]} 72. Kf5 {[%emt 0:00:05]} Qa5+ {[%emt 0:00:12]} 73. Qxa5 {[%emt 0:00:15]} bxa5 {[%emt 0:00:05] KPP-KP} 74. Ke5 {[%emt 0:01:06] Threatening mate with f4.} a4 {[%emt 0:00:32] ( -> ...a3)} 75. Kd4 {[%emt 0:00:15] White wants to mate with f4.} Kxa7 {[%emt 0:00:23]} 76. Kc4 {[%emt 0:00:39]} Kb6 {[%emt 0:00:10]} 77. Kb4 {[%emt 0:00:14]} Kc6 {[%emt 0:00:11]} 78. Kxa4 {[%emt 0:00:05]} Kd5 {[%emt 0:00:08]} 79. Kb4 {[%emt 0:00:02]} Kd4 {[%emt 0:00:10]} 80. f4 {[%emt 0:02:26] Black defended with fortune.  Weighted Error Value: White=0.62/Black=0.90} 1/2-1/2

[Event "Mongolian Championship Women 2022"]
[Site "Chingis Khentii"]
[Date "2022.05.18"]
[Round "6.3"]
[White "Munguntuul, Batkhuyag"]
[Black "Tsetsenbileg, Munkhbayar"]
[Result "1-0"]
[ECO "B05"]
[WhiteElo "2443"]
[BlackElo "1830"]
[Annotator "TA"]
[PlyCount "29"]
[EventDate "2022.05.12"]
[EventType "tourn"]
[EventCountry "MGL"]
[SourceTitle "playchess.com"]
[Source "ChessBase"]
[SourceQuality "1"]
[TimeControl "40/5400+30:1800+30"]

{[%evp 9,29,39,64,48,63,60,198,204,294,289,285,278,605,600,739,747,1329,975,1322,1322,1214,1165]} 1. e4 {[%emt 0:00:01][%cal Be2e4,Be4e5][%mdl 32]} Nf6 {[%emt 0:00:41]} 2. e5 {[%emt 0:00:05]} Nd5 {[%emt 0:00:05]} 3. d4 {[%emt 0:00:06]} d6 {[%emt 0:00:04]} 4. Nf3 {[%emt 0:00:07][%cal Bg1f3,Bf3g5,Bg5e6,Be6c7][%mdl 32]} Bg4 {[%emt 0:00:46]} 5. Be2 {[%emt 0:00:05]} g6 {[%emt 0:00:23]} 6. Ng5 {[%emt 0:00:52] B05: Alekhine's Defence: 4 Nf3 Bg4.} Bxe2 {[%emt 0:09:54]} 7. Qxe2 {[%emt 0:00:10] Black must now prevent Qf3.} dxe5 {[%emt 0:01:16] [#]} ({Black should play} 7... e6 $1 $14) 8. Qf3 $1 $18 {[%emt 0:00:40] White is clearly better.} ({Weaker is} 8. dxe5 h6 9. Ne4 Nc6 $14) ({But not} 8. Qxe5 $2 f6 9. Qe4 fxg5 $19) 8... f6 {[%emt 0:06:23]} (8... f5 $142) 9. Ne6 {[%emt 0:01:05]} Qd6 {[%emt 0:03:47]} 10. Qxd5 {[%emt 0:01:07] [#]} Qb6 $146 {[%emt 0:03:40]} (10... Qxd5 11. Nxc7+ Kd7 12. Nxd5 exd4) ({Predecessor:} 10... Nc6 11. Qxd6 {1-0 (11) Evans,R-Illingworth,J England 1988}) 11. dxe5 {[%emt 0:05:07][%cal Bd4e5,Be5e6][%mdl 32] White is clearly winning.} Nd7 {[%emt 0:01:25]} 12. Be3 {[%emt 0:00:54]} Qxb2 {[%emt 0:01:06]} 13. Nxc7+ {[%emt 0:00:17]} Kd8 {[%emt 0:00:05] [#]} 14. e6 $1 {[%emt 0:01:31][%csl Ge6][%cal Rd5d7]} Qb4+ {[%emt 0:00:53]} 15. Nd2 {[%emt 0:00:19] Black did not feel at home in the position after the opening.  Weighted Error Value: White=0.02 (flawless) /Black=0.93} 1-0

[Event "Mongolian Championship Women 2022"]
[Site "Chingis Khentii"]
[Date "2022.05.18"]
[Round "6.4"]
[White "Amin-Erdene, Bayanmunkh"]
[Black "Nomindalai Tumurbaatar"]
[Result "0-1"]
[ECO "A43"]
[WhiteElo "1425"]
[BlackElo "2111"]
[Annotator "TA"]
[PlyCount "114"]
[EventDate "2022.05.12"]
[EventType "tourn"]
[EventCountry "MGL"]
[SourceTitle "playchess.com"]
[Source "ChessBase"]
[SourceQuality "1"]
[TimeControl "40/5400+30:1800+30"]

{[%evp 9,114,22,48,55,118,43,56,46,54,42,32,14,45,27,24,19,38,15,46,46,68,84,97,88,94,37,59,37,17,10,7,12,9,0,-15,-4,0,0,0,0,6,-71,88,39,50,12,9,-5,-5,-11,-12,-191,159,97,97,0,0,-74,-65,-75,-14,-39,-11,-8,0,-631,-617,-573,-525,-714,-714,-706,-692,-699,-689,-672,-619,-596,-565,-390,-51,-54,0,-200,-161,-185,-175,-367,-360,-426,-195,-454,-416,-1079,-810,-757,-722,-29994,-5306,-29995,-29996,-29996,-29996,-29996,-29997,-29998,-29999]} 1. d4 {[%emt 0:01:18]} Nf6 {[%emt 0:00:48]} 2. Nf3 {[%emt 0:00:06]} c5 {[%emt 0:00:56]} 3. d5 {[%emt 0:00:10]} b5 {[%emt 0:00:54]} 4. c3 {[%emt 0:00:11]} Bb7 {[%emt 0:07:43]} 5. e4 {[%emt 0:06:25]} Nxe4 {[%emt 0:22:04]} 6. Bxb5 {[%emt 0:00:35] A43: Schmid Benoni.} Qa5 {[%emt 0:01:50] [#]} (6... e6 $14) 7. Be2 $146 {[%emt 0:27:13]} ({White should try} 7. Na3 $16) ({Predecessor:} 7. Na3 Nf6 8. d6 Ne4 9. Bf4 Qb6 10. dxe7 Bxe7 11. Bxb8 Rxb8 12. Qxd7+ Kf8 13. Nc4 {1-0 (47) Berkes,F (2648)-Esipenko,A (2492) Zuerich 2017}) 7... e6 {[%emt 0:06:59]} 8. dxe6 {[%emt 0:00:54] White is slightly better.} fxe6 {[%emt 0:07:37]} 9. Bf4 {[%emt 0:01:39]} Be7 {[%emt 0:00:18]} 10. O-O {[%emt 0:00:46]} (10. Bxb8 Rxb8 11. O-O Nd6 $17) 10... Qd8 {[%emt 0:06:57]} 11. Qb3 {[%emt 0:08:09]} Qc8 {[%emt 0:01:44]} 12. h3 {[%emt 0:04:34]} O-O {[%emt 0:00:17]} 13. Bh2 {[%emt 0:00:21]} Nc6 {[%emt 0:08:52]} 14. Nbd2 {[%emt 0:03:56]} Nd6 {[%emt 0:05:29]} 15. Qc2 {[%emt 0:06:09]} Qe8 {[%emt 0:06:25]} 16. Rad1 {[%emt 0:04:27]} (16. Bxd6 $6 Bxd6 17. Ne4 (17. Ng5 g6 $11) 17... Be7 $11) 16... Nf5 {[%emt 0:03:01]} 17. Ne4 {[%emt 0:04:36]} (17. Rfe1 $16) 17... d5 $14 {[%emt 0:01:46][%cal Bd7d5,Bd5d4,Bd4d3][%mdl 32]} 18. Ng3 {[%emt 0:01:42]} Nh4 {[%emt 0:07:05]} 19. Nxh4 {[%emt 0:02:02]} Bxh4 {[%emt 0:00:02]} 20. Bg4 {[%emt 0:02:39]} Ne5 {[%emt 0:03:49]} 21. Bh5 {[%emt 0:02:16]} Qc6 {[%emt 0:00:17][%cal Od5d4]} 22. Rfe1 {[%emt 0:10:00] [#]} d4 $1 {[%emt 0:03:45][%csl Gb7][%cal Rc6g2]} 23. f3 {[%emt 0:00:30]} d3 {[%emt 0:00:49]} 24. Qf2 {[%emt 0:00:57]} Qd5 $36 {[%emt 0:00:54][%mdl 2048] aiming for ...g6. Black has good play. Dancing on a razor blade.} 25. Qe3 {[%emt 0:00:49]} (25. b3 $1 $11 {remains equal.}) 25... Bf6 $2 {[%emt 0:01:01] 0x0.002d06999c5cdp-1022s more active pieces.} (25... Nc4 $17 26. Qxd3 Nxb2 27. Qxd5 exd5) 26. Ne4 {[%emt 0:02:23]} (26. b3 $16) 26... Nc4 $1 {[%emt 0:01:28]} 27. Nxf6+ {[%emt 0:07:01]} (27. Qxc5 Bh4 28. Qxd5 exd5 $15) (27. Qxd3 {looks sharper.} Nxb2 28. Qxd5 Bxd5 29. Rd2) 27... Rxf6 {[%emt 0:00:01]} 28. Qxd3 {[%emt 0:00:19]} Qxh5 {[%emt 0:00:53]} 29. Qxc4 {[%emt 0:00:15]} Rg6 {[%emt 0:00:04][%csl LRf3,LRh3][%cal Og6g2]} 30. g4 {[%emt 0:02:16]} (30. Rxe6 $2 Rxg2+ $3 {[%mdl 512]} 31. Kh1 Kh8 $1 $19) (30. Rf1 $1 $11) 30... Bd5 $2 {[%emt 0:01:09]} (30... Qxh3 $19 31. Rxe6 Kh8) 31. Qf1 {[%emt 0:00:47]} (31. Qxc5 $142 {[%cal Oe1e6] Strongly threatening Rxe6!} Qh4 32. Re3) 31... Rf8 $16 {[%emt 0:00:28]} 32. Re5 {[%emt 0:00:32]} (32. Re3 $1 $16) 32... Qh4 $11 {[%emt 0:00:24]} 33. Rdxd5 {[%emt 0:00:31]} (33. f4 $1 $11 {keeps the balance.}) 33... exd5 $17 {[%emt 0:00:03]} 34. Rxd5 {[%emt 0:00:01]} Qe7 {[%emt 0:00:28]} (34... Rb6 $17 35. b3 Rh6) 35. Re5 {[%emt 0:00:31]} Qb7 {[%emt 0:00:59]} 36. Qc4+ $1 {[%emt 0:00:47]} Kh8 {[%emt 0:00:02]} 37. Qxc5 $2 {[%emt 0:00:27][%mdl 8192]} (37. Qe2 $11) 37... Qxf3 $19 {[%emt 0:00:23][%csl Gf8][%cal Rf3f1]} 38. Re1 {[%emt 0:00:36] Inhibits Qf1+.} Rgf6 {[%emt 0:00:37]} 39. Be5 {[%emt 0:00:38]} Qxh3 {[%emt 0:01:00]} 40. Bxf6 {[%emt 0:00:00]} Qg3+ {[%emt 0:00:00]} 41. Kh1 {[%emt 0:02:35][%cal Rc5f8]} Qxe1+ {[%emt 0:00:11][%mdl 4096] Endgame KQR-KQB} 42. Kh2 {[%emt 0:02:02][%cal Rc5f8]} Qd2+ {[%emt 0:03:21]} 43. Kg3 {[%emt 0:13:16][%cal Rc5f8] [#]} Qd3+ $1 {[%emt 0:03:28]} 44. Kh4 {[%emt 0:02:25][%cal Rc5f8] [#]} Re8 {[%emt 0:02:52]} (44... Kg8 $1 $19 45. Be5 Qf3 46. Qc4+ Kh8) 45. Bd4 $15 {[%emt 0:02:10]} Qc2 {[%emt 0:07:14]} ({Better is} 45... h6 $15 46. b4 (46. Qc6 $2 Kh7 $19) 46... Qe2) 46. Qc7 $2 {[%emt 0:01:03]} (46. Bxg7+ $11 {and White has nothing to worry.} Kxg7 47. Qd4+ Kg8 48. Qc4+ Kg7 49. Qd4+ Kf8 50. Qf4+ Kg7 51. Qd4+) 46... Qg6 $19 {[%emt 0:00:22][%cal Oh7h5] And now ...h5! would win.} 47. Qd7 {[%emt 0:02:53][%cal Od4g7]} Rf8 {[%emt 0:03:02]} 48. Qd5 $2 {[%emt 0:05:28]} (48. Qe7 Kg8 49. Qg5) 48... h6 {[%emt 0:00:39] ...Rf4 is the strong threat.} 49. Qe5 {[%emt 0:01:48] Against Rf4} Rf7 {[%emt 0:02:25]} (49... Rf3 $142 {Threatens to win with ...Qf7.} 50. c4 Kg8) 50. a3 $2 {[%emt 0:01:49]} (50. Kg3) 50... Qc6 {[%emt 0:00:15]} 51. Qh2 {[%emt 0:01:03] Inhibits Qh1.} (51. Qe2 $142 Qg6 52. Qe8+ Kh7 53. Qe3) 51... Kg8 {[%emt 0:00:55]} 52. Qe2 {[%emt 0:00:00]} Rf3 {[%emt 0:00:48] ( -> ...g5+)} ({Worse is} 52... g5+ 53. Kg3 $17) 53. Qh2 {[%emt 0:00:29]} g5+ {[%emt 0:00:44]} 54. Kh5 {[%emt 0:00:01]} Kf7 {[%emt 0:00:10][%csl Gf7][%cal Rc6g6] Black mates.} 55. Bf6 {[%emt 0:00:58]} Kxf6 {[%emt 0:00:34]} 56. Kxh6 {[%emt 0:00:27]} Kf7+ {[%emt 0:00:07]} 57. Kh7 {[%emt 0:00:13]} Qg6+ {[%emt 0:00:05] Weighted Error Value: White=0.69/Black=0.42} 0-1

[Event "Mongolian Championship Women 2022"]
[Site "Chingis Khentii"]
[Date "2022.05.18"]
[Round "6.5"]
[White "Mungunzul, Bat-Erdene"]
[Black "Munkhzul, Davaakhuu"]
[Result "1-0"]
[ECO "E35"]
[WhiteElo "2091"]
[BlackElo "1991"]
[Annotator "TA"]
[PlyCount "63"]
[EventDate "2022.05.12"]
[EventType "tourn"]
[EventCountry "MGL"]
[SourceTitle "playchess.com"]
[Source "ChessBase"]
[SourceQuality "1"]
[TimeControl "40/5400+30:1800+30"]

{[%evp 17,63,14,14,21,28,50,59,27,200,63,272,252,293,293,281,289,322,322,389,385,370,373,388,393,383,396,442,422,487,464,510,511,536,528,583,572,543,410,395,372,590,605,581,570,692,691,1460,1050]} 1. d4 {[%emt 0:00:03]} d5 {[%emt 0:00:08]} 2. c4 {[%emt 0:00:09]} e6 {[%emt 0:00:05]} 3. Nc3 {[%emt 0:00:08]} Nf6 {[%emt 0:00:12]} 4. Bg5 {[%emt 0:00:16]} Bb4 {[%emt 0:01:14]} 5. cxd5 {[%emt 0:01:16]} exd5 {[%emt 0:00:51]} 6. Qc2 {[%emt 0:00:44]} h6 {[%emt 0:10:03]} 7. Bh4 {[%emt 0:00:08]} c5 {[%emt 0:00:52]} 8. dxc5 {[%emt 0:00:14]} g5 {[%emt 0:01:01]} 9. Bg3 {[%emt 0:00:13]} Ne4 {[%emt 0:00:11] ...Qa5 is the strong threat.} 10. e3 {[%emt 0:01:26] E35: Nimzo-Indian: Classical: 4...d5 5 cxd5 exd5.} Qa5 {[%emt 0:02:30][%cal Re4c3]} 11. Nge2 {[%emt 0:01:47] The old main line.} Bf5 {[%emt 0:03:21]} 12. Bxb8 {[%emt 0:01:33] White is slightly better.} (12. Be5 $5 {[%cal Re5h8]} Rg8 13. Nd4 $14) 12... Bg6 $2 {[%emt 0:14:59] [#]} (12... Rxb8 $11 13. Nd4 Bd7) 13. Be5 $146 {[%emt 0:14:35]} ({White must play} 13. Bc7 $1 $18 {[%cal Rc7a5]} Qxc5 14. Qa4+ b5 15. Qb3 Bxc3+ 16. Nxc3 Qxc7 17. Qxd5 (17. Bxb5+ Kf8 $18)) ({Predecessor:} 13. Bc7 Qxc5 14. Qa4+ b5 15. Qb3 Bxc3+ 16. Nxc3 Qxc7 17. Bxb5+ Kf8 18. Nxe4 dxe4 19. O-O {½-½ (36) Gladyszev,O (2485)-Zubarev,A (2511) Lipetsk 2007}) 13... Nxc5 $2 {[%emt 0:11:22] [#]} 14. Qd1 $1 $18 {[%emt 0:04:24]} ({Worse is} 14. e4 Bxe4 15. Qd2 (15. Qxe4 $2 dxe4 16. Bxh8 Nd3+ 17. Kd2 Nxf2 $19) 15... Nd3+ 16. Qxd3 Bxd3 $11) 14... Nd3+ {[%emt 0:03:58] [#]} 15. Qxd3 $3 {[%emt 0:00:22][%mdl 512]} Bxd3 {[%emt 0:00:32]} 16. Bxh8 {[%emt 0:00:09]} Rc8 {[%emt 0:05:49]} 17. a3 {[%emt 0:15:05]} Bxe2 {[%emt 0:13:51]} 18. Bxe2 {[%emt 0:01:57][%cal Bf1e2,Be2f3,Bf3d5][%mdl 32]} (18. Kxe2 f6 $18) 18... Bxc3+ {[%emt 0:02:10]} 19. bxc3 {[%emt 0:00:08]} ({Weaker is} 19. Bxc3 Rxc3 20. b4 Qa4 $17) 19... Rxc3 {[%emt 0:01:08][%cal Rc3c1]} 20. O-O {[%emt 0:00:17]} Rc2 {[%emt 0:05:14]} 21. Bf3 {[%emt 0:01:12]} f5 {[%emt 0:04:54]} 22. h3 {[%emt 0:03:28]} Rc7 {[%emt 0:01:48]} 23. Rfd1 {[%emt 0:00:55]} Rd7 {[%emt 0:00:46]} 24. Rd3 {[%emt 0:00:36]} Qc5 {[%emt 0:04:04]} 25. Rad1 {[%emt 0:00:55]} a5 {[%emt 0:01:17]} 26. Bxd5 {[%emt 0:00:51]} Ke7 {[%emt 0:01:01]} 27. Bf3 {[%emt 0:00:49]} Rxd3 {[%emt 0:00:32]} 28. Rxd3 {[%emt 0:00:20]} b5 {[%emt 0:02:23]} (28... Qc1+ {is a better defense.} 29. Rd1 Qxa3) 29. Rc3 {[%emt 0:00:41] White is clearly winning.} Qd6 {[%emt 0:01:24]} 30. Bd4 {[%emt 0:00:13] And now Bc5 would win.} Kd8 {[%emt 0:00:49]} 31. Rc5 {[%emt 0:00:29] Threatens to win with Rd5.} Ke8 {[%emt 0:00:52]} 32. Re5+ {[%emt 0:51:07] Black did not feel at home in the position after the opening.  Weighted Error Value: White=0.17 (very precise) /Black=0.59} 1-0